bitfinex-derivatives/quotes_BTCF0:USTF0_20250429
["timestamp","ask_amount","ask_price","bid_price","bid_amount"]
[1745920591309,0.2361043,95044.0,95043.0,0.3303574]
[1745920592217,0.2361043,95044.0,95043.0,0.2103574]
[1745920593110,0.2361043,95044.0,95043.0,0.3303574]
[1745920594817,0.2361043,95044.0,95043.0,0.6911574]
[1745920595118,0.2361043,95044.0,95043.0,0.5711574]
[1745920596118,0.2361043,95044.0,95043.0,0.6911574]
[1745920596713,0.0256743,95044.0,95043.0,0.6911574]
[1745920597310,0.0256743,95044.0,95043.0,0.5711574]
[1745920598105,0.0015,95045.0,95044.0,0.2103552]
[1745920598413,0.0015,95045.0,95044.0,0.2422552]
[1745920599321,0.0015,95045.0,95044.0,0.2755552]
[1745920603317,0.0015,95045.0,95044.0,0.0652]
[1745920603523,0.0015,95045.0,95044.0,0.3073552]
[1745920608421,0.0015,95045.0,95044.0,0.6681552]
[1745920608924,0.0015,95045.0,95044.0,0.3073552]
[1745920609129,0.0015,95045.0,95044.0,0.6681552]
[1745920610425,0.0015,95045.0,95044.0,0.3073552]
[1745920610628,0.0015,95045.0,95044.0,0.6681552]
[1745920611918,0.0015,95045.0,95044.0,0.3073552]
[1745920612121,0.0015,95045.0,95044.0,1.2092752]
[1745920612525,0.001,95046.0,95045.0,0.2103529]
[1745920612822,0.3608,95069.0,95068.0,0.210302]
[1745920613022,0.5952998,95069.0,95068.0,0.210302]
[1745920613328,0.84374101,95069.0,95068.0,0.210302]
[1745920613816,0.94892901,95069.0,95068.0,0.210302]
[1745920614015,0.24844121,95069.0,95068.0,0.210302]
[1745920614417,0.24844121,95069.0,95068.0,0.217302]
[1745920614617,0.24844121,95069.0,95068.0,0.250202]
[1745920615524,0.24844121,95069.0,95068.0,0.243202]
[1745920615725,0.56392901,95069.0,95068.0,0.210302]
[1745920615930,0.2103197,95064.0,95063.0,0.2103035]
[1745920616133,0.2103197,95064.0,95063.0,0.2404035]
[1745920616317,0.4207097,95064.0,95063.0,0.2404035]
[1745920616517,0.2103197,95064.0,95063.0,0.2733035]
[1745920616717,0.2360197,95064.0,95063.0,0.2733035]
[1745920617319,0.0257,95064.0,95063.0,0.2733035]
[1745920617518,0.2103059,95067.0,95063.0,0.063]
[1745920617723,0.2103059,95067.0,95066.0,0.2103065]
[1745920617918,0.2762659,95067.0,95066.0,0.2103065]
[1745920618119,0.5918339,95067.0,95066.0,0.2718065]
[1745920618534,0.381528,95067.0,95066.0,0.2718065]
[1745920619234,0.3814523,95067.0,95066.0,0.2718065]
[1745920620032,0.2762643,95067.0,95066.0,0.2718065]
[1745920620626,0.4866443,95067.0,95066.0,0.2718065]
[1745920622427,0.4866443,95067.0,95066.0,0.11072459]
[1745920622632,0.2762643,95067.0,95066.0,0.2718065]
[1745920627031,0.2762643,95067.0,95066.0,0.6928765]
[1745920627329,0.2762643,95067.0,95066.0,0.8128765]
[1745920628032,0.06596,95067.0,95066.0,0.8128765]
[1745920628233,0.03758263,95069.0,95068.0,0.210302]
[1745920628540,0.0525723,95074.0,95073.0,0.2628588]
[1745920628737,0.0525723,95074.0,95073.0,0.3287588]
[1745920628939,0.0525723,95074.0,95073.0,0.7811088]
[1745920629143,0.2628611,95074.0,95073.0,0.3600588]
[1745920632237,0.2102888,95074.0,95073.0,0.3600588]
[1745920636247,0.2102888,95074.0,95073.0,0.7811088]
[1745920641143,0.2102888,95074.0,95073.0,0.9011088]
[1745920641651,0.2102888,95074.0,95073.0,0.71868989]
[1745920641828,0.2102888,95074.0,95073.0,0.92897649]
[1745920642341,0.2102888,95074.0,95073.0,0.80897649]
[1745920643334,0.2102888,95074.0,95073.0,0.38792649]
[1745920643541,0.2102888,95074.0,95073.0,0.35662649]
[1745920643833,0.4206488,95074.0,95073.0,0.35662649]
[1745920644236,0.2102888,95074.0,95073.0,0.47662649]
[1745920645135,0.4206488,95074.0,95073.0,0.35662649]
[1745920647139,0.4206488,95074.0,95073.0,0.47662649]
[1745920647444,0.2102888,95074.0,95073.0,0.47662649]
[1745920647847,0.2102888,95074.0,95073.0,0.3961866]
[1745920648143,0.2102888,95074.0,95073.0,0.2761866]
[1745920651144,0.7814488,95074.0,95073.0,0.2761866]
[1745920651345,0.7829488,95074.0,95073.0,0.2761866]
[1745920651642,0.7829488,95074.0,95073.0,0.276191]
[1745920652553,0.7829488,95074.0,95073.0,0.0659]
[1745920652845,0.8071488,95074.0,95073.0,0.0659]
[1745920653344,0.8071488,95074.0,95073.0,0.276191]
[1745920653542,0.8474088,95074.0,95073.0,0.276191]
[1745920660334,0.6370488,95074.0,95073.0,0.276191]
[1745920666246,0.6370488,95074.0,95073.0,0.0659]
[1745920667148,0.6385488,95074.0,95073.0,0.0659]
[1745920667745,0.6370488,95074.0,95073.0,0.0659]
[1745920668246,1.0501488,95074.0,95073.0,0.0659]
[1745920668440,1.0501488,95074.0,95073.0,0.276191]
[1745920668844,0.4131,95074.0,95073.0,0.697241]
[1745920669040,0.6233888,95074.0,95073.0,0.817241]
[1745920684257,0.6233888,95074.0,95073.0,0.847841]
[1745920689173,0.4131,95074.0,95073.0,0.847841]
[1745920689563,0.6233888,95074.0,95073.0,0.847841]
[1745920691465,0.4131,95074.0,95073.0,0.847841]
[1745920691662,0.24410322,95076.0,95075.0,0.2102866]
[1745920691866,0.24410322,95076.0,95075.0,0.4209766]
[1745920692062,0.24410322,95076.0,95075.0,0.2727866]
[1745920692266,0.24410322,95076.0,95075.0,0.3927866]
[1745920698289,0.24410322,95076.0,95075.0,0.8138366]
[1745920701181,0.45446322,95076.0,95075.0,0.1501]
[1745920701388,0.51256322,95076.0,95075.0,0.1501]
[1745920701586,0.51256322,95076.0,95075.0,0.3603866]
[1745920702181,0.51256322,95076.0,95075.0,0.2403866]
[1745920703282,0.92566322,95076.0,95075.0,0.2403866]
[1745920706175,0.71530322,95076.0,95075.0,0.2403866]
[1745920706382,0.92566322,95076.0,95075.0,0.2403866]
[1745920708891,0.92566322,95076.0,95075.0,0.0301]
[1745920709281,0.92566322,95076.0,95075.0,0.2403866]
[1745920710488,0.92566322,95076.0,95075.0,0.0301]
[1745920710886,0.92566322,95076.0,95075.0,0.2403866]
[1745920711285,0.71530322,95076.0,95075.0,0.2403866]
[1745920712591,0.71530322,95076.0,95075.0,0.0301]
[1745920713796,0.71530322,95076.0,95075.0,0.2403866]
[1745920713988,0.71530322,95076.0,95075.0,0.0301]
[1745920715290,0.69110322,95076.0,95075.0,0.0301]
[1745920716994,0.68960322,95076.0,95075.0,0.0301]
[1745920718193,0.68960322,95076.0,95075.0,0.1501]
[1745920721201,0.68960322,95076.0,95075.0,0.1816]
[1745920721398,0.65720322,95076.0,95075.0,0.1816]
[1745920722796,0.65720322,95076.0,95075.0,0.3918866]
[1745920723296,0.65720322,95076.0,95075.0,0.1816]
[1745920726097,0.65720322,95076.0,95075.0,0.0616]
[1745920732109,0.65720322,95076.0,95075.0,0.1816]
[1745920733811,1.01800322,95076.0,95075.0,0.1816]
[1745920734405,1.22836322,95076.0,95075.0,0.1816]
[1745920734606,1.01800322,95076.0,95075.0,0.1816]
[1745920734810,1.22836322,95076.0,95075.0,0.1816]
[1745920735112,1.22836322,95076.0,95075.0,0.0616]
[1745920736210,1.01800322,95076.0,95075.0,0.0616]
[1745920744712,0.2103131,95063.0,95062.0,0.3608]
[1745920744913,0.2103131,95063.0,95062.0,0.5711153]
[1745920745113,0.2103131,95063.0,95062.0,1.1121953]
[1745920748419,0.2103131,95063.0,95062.0,1.1742953]
[1745920754420,0.2103131,95063.0,95062.0,0.1821]
[1745920754717,0.210333,95054.0,95053.0,0.21069]
[1745920754919,0.571133,95054.0,95053.0,0.21069]
[1745920755109,0.2103397,95051.0,95050.0,0.2426408]
[1745920755516,0.2103397,95051.0,95050.0,0.6637408]
[1745920756320,0.2103397,95051.0,95050.0,0.7837408]
[1745920757118,0.2103397,95051.0,95050.0,0.7867408]
[1745920757725,0.2103397,95051.0,95050.0,0.7887408]
[1745920758125,0.2103397,95051.0,95050.0,0.8532408]
[1745920758625,0.2103397,95051.0,95050.0,0.8512408]
[1745920759229,0.2103397,95051.0,95050.0,0.8482408]
[1745920761523,0.3287841,95062.0,95061.0,0.2103175]
[1745920761719,0.2762043,95062.0,95061.0,0.2103175]
[1745920761914,0.1184556,95068.0,95064.0,0.2103087]
[1745920762119,0.2103062,95067.0,95066.0,0.2103043]
[1745920762521,0.2103062,95067.0,95066.0,0.6641743]
[1745920762718,0.276182,95068.0,95067.0,0.2103043]
[1745920762918,0.276182,95068.0,95067.0,0.6641743]
[1745920763113,0.276182,95068.0,95067.0,0.7841743]
[1745920763313,0.210302,95068.0,95067.0,0.7841743]
[1745920764518,0.3287538,95070.0,95069.0,0.2102998]
[1745920764719,0.3287538,95070.0,95069.0,0.4209898]
[1745920764924,0.3287538,95070.0,95069.0,0.6313598]
[1745920765118,0.3287538,95070.0,95069.0,0.7513598]
[1745920774133,0.3287538,95070.0,95069.0,0.7823598]
[1745920775831,0.3287538,95070.0,95069.0,0.8136598]
[1745920776032,0.2761776,95070.0,95069.0,0.8136598]
[1745920785229,0.2102976,95070.0,95069.0,0.8136598]
[1745920785638,0.2737976,95070.0,95069.0,0.8136598]
[1745920791941,0.2737976,95070.0,95069.0,0.7823598]
[1745920792338,0.2737976,95070.0,95069.0,0.57206]
[1745920792532,0.2737976,95070.0,95069.0,0.3612998]
[1745920795240,0.6345976,95070.0,95069.0,0.3612998]
[1745920796036,0.6345976,95070.0,95069.0,0.151]
[1745920796437,0.8449676,95070.0,95069.0,0.151]
[1745920796637,0.8449676,95070.0,95069.0,0.12]
[1745920797232,0.2102998,95069.0,95068.0,0.0303]
[1745920797439,0.2434998,95069.0,95068.0,0.0303]
[1745920797634,0.3047998,95069.0,95068.0,0.0303]
[1745920798235,0.5151698,95069.0,95068.0,0.0303]
[1745920800334,0.3047998,95069.0,95068.0,0.0303]
[1745920800837,0.3047998,95069.0,95068.0,0.240602]
[1745920804241,0.3047998,95069.0,95068.0,0.0303]
[1745920804443,0.410058,95069.0,95041.0,0.3608]
[1745920804630,0.2103242,95058.0,95057.0,0.0322]
[1745920804837,0.5711242,95058.0,95057.0,0.0322]
[1745920805138,0.7815242,95058.0,95057.0,0.2425264]
[1745920805532,0.8444242,95058.0,95057.0,0.2425264]
[1745920805933,0.8444242,95058.0,95057.0,0.0322]
[1745920806134,0.8444242,95058.0,95057.0,0.2425264]
[1745920806336,0.8444242,95058.0,95057.0,0.2751264]
[1745920806937,0.9102642,95058.0,95057.0,0.2751264]
[1745920807339,0.6998642,95058.0,95057.0,0.2761264]
[1745920809234,0.6998642,95058.0,95057.0,0.3961264]
[1745920809643,0.6696642,95058.0,95057.0,0.8172164]
[1745920809846,0.6369642,95058.0,95057.0,0.8172164]
[1745920810841,0.42664,95058.0,95057.0,0.8172164]
[1745920811734,0.6369642,95058.0,95057.0,0.8172164]
[1745920812239,0.5711242,95058.0,95057.0,0.8172164]
[1745920813734,0.5711242,95058.0,95057.0,0.67098735]
[1745920817040,0.5711242,95058.0,95057.0,0.70138735]
[1745920820744,0.0525776,95065.0,95064.0,0.2103087]
[1745920820944,0.3154755,95065.0,95064.0,0.4209987]
[1745920821151,0.3154755,95065.0,95064.0,0.3303087]
[1745920822848,0.3154755,95065.0,95064.0,0.12]
[1745920823052,0.3154755,95065.0,95064.0,0.3303109]
[1745920823856,0.3154755,95065.0,95064.0,0.12]
[1745920824054,0.3455755,95065.0,95064.0,0.3303109]
[1745920824353,0.3455755,95065.0,95064.0,0.12]
[1745920825149,0.24048,95065.0,95050.0,0.2103278]
[1745920825351,0.2629222,95052.0,95051.0,0.21069]
[1745920825551,0.2103441,95049.0,95048.0,0.2629305]
[1745920825751,0.2103441,95049.0,95048.0,0.2103441]
[1745920825944,0.2103441,95049.0,95048.0,0.6314541]
[1745920826144,0.2103441,95049.0,95048.0,0.7514541]
[1745920826956,0.2103441,95049.0,95048.0,0.7534541]
[1745920827155,0.2103441,95049.0,95048.0,0.7554541]
[1745920827658,0.2103441,95049.0,95048.0,0.7544541]
[1745920829064,0.2103441,95049.0,95048.0,0.7524541]
[1745920829359,0.2103441,95049.0,95048.0,0.7544541]
[1745920830458,0.2103441,95049.0,95048.0,0.7524541]
[1745920830659,0.2103441,95049.0,95048.0,0.7544541]
[1745920831563,0.2103441,95049.0,95048.0,0.7534541]
[1745920831762,0.2103441,95049.0,95048.0,0.7544541]
[1745920832365,0.2103441,95049.0,95048.0,0.7524541]
[1745920832565,0.2103441,95049.0,95048.0,0.7544541]
[1745920835654,0.2103441,95049.0,95048.0,0.7868541]
[1745920835854,0.2103441,95049.0,95048.0,0.7544541]
[1745920836861,0.2425441,95049.0,95048.0,0.7544541]
[1745920839568,0.2425441,95049.0,95048.0,0.7859541]
[1745920843954,0.2425441,95049.0,95048.0,0.57561]
[1745920844369,0.2425441,95049.0,95048.0,0.7859541]
[1745920846574,0.0658,95057.0,95056.0,0.2103286]
[1745920846869,0.2103264,95057.0,95056.0,0.2103286]
[1745920847069,0.2103264,95057.0,95056.0,0.6314186]
[1745920847266,0.2103264,95057.0,95056.0,0.8123186]
[1745920849365,0.6234204,95060.0,95059.0,0.210322]
[1745920849569,0.6234204,95060.0,95059.0,0.421012]
[1745920849757,0.6234204,95060.0,95059.0,0.631402]
[1745920849961,0.2103204,95060.0,95059.0,0.631402]
[1745920850162,0.2103204,95060.0,95059.0,0.751402]
[1745920850356,0.2103204,95060.0,95059.0,0.811902]
[1745920852460,0.2103204,95060.0,95059.0,0.812902]
[1745920858973,0.2103204,95060.0,95059.0,0.602212]
[1745920859177,0.2103204,95060.0,95059.0,0.812902]
[1745920863987,0.2103204,95060.0,95059.0,0.60258]
[1745920864778,0.2103204,95060.0,95059.0,0.812902]
[1745920866888,0.2103204,95060.0,95059.0,0.391822]
[1745920867087,0.2103204,95060.0,95059.0,0.812902]
[1745920869291,0.2103204,95060.0,95059.0,1.173702]
[1745920869488,0.06576,95074.0,95062.0,0.0525788]
[1745920869788,0.2760517,95074.0,95073.0,0.210291]
[1745920869986,0.3091517,95074.0,95073.0,1.710291]
[1745920870186,0.5195117,95074.0,95073.0,1.710291]
[1745920870390,0.4537517,95074.0,95073.0,1.710291]
[1745920871191,0.4869517,95074.0,95073.0,1.710291]
[1745920872179,0.2765917,95074.0,95073.0,1.710291]
[1745920873388,0.3083917,95074.0,95073.0,0.210291]
[1745920874383,0.3083917,95074.0,95073.0,0.240891]
[1745920875789,0.3083917,95074.0,95060.0,0.0525796]
[1745920875790,0.66926,95074.0,95060.0,0.0525796]
[1745920875988,0.2103175,95062.0,95061.0,0.2628851]
[1745920876189,0.2103175,95062.0,95061.0,0.2934851]
[1745920876385,0.3055175,95062.0,95061.0,0.2934851]
[1745920876979,0.3055175,95062.0,95061.0,0.3254851]
[1745920878088,0.3055175,95062.0,95061.0,0.4454851]
[1745920879294,0.3055175,95062.0,95061.0,0.3254851]
[1745920882290,0.3055175,95062.0,95061.0,0.2934851]
[1745920884106,0.3055175,95062.0,95061.0,0.4134851]
[1745920888502,0.4827075,95062.0,95061.0,0.12]
[1745920888702,0.5146075,95062.0,95061.0,0.3303175]
[1745920889206,0.6346075,95062.0,95061.0,0.2103175]
[1745920890207,0.2723175,95062.0,95061.0,0.2103175]
[1745920890713,0.3380775,95062.0,95061.0,0.2726175]
[1745920890909,0.3077775,95062.0,95061.0,0.2726175]
[1745920891106,0.2760775,95062.0,95061.0,0.3926175]
[1745920891304,0.2760775,95062.0,95061.0,0.8136975]
[1745920891904,0.3067775,95062.0,95061.0,0.8136975]
[1745920895605,0.0525741,95071.0,95064.0,0.0525775]
[1745920895805,0.2102998,95070.0,95069.0,0.2102976]
[1745920896202,0.2102998,95070.0,95069.0,2.2513576]
[1745920896404,0.2760554,95071.0,95070.0,0.2102976]
[1745920896610,0.2760554,95071.0,95070.0,0.6313576]
[1745920897210,0.571091,95073.0,95072.0,0.2102932]
[1745920897413,0.06576,95075.0,95072.0,0.21069]
[1745920897615,0.06576,95075.0,95074.0,0.2102888]
[1745920897916,0.06576,95075.0,95074.0,0.4209788]
[1745920898114,0.06576,95075.0,95074.0,0.7513388]
[1745920898513,0.09686,95075.0,95074.0,0.7513388]
[1745920898910,0.3071466,95075.0,95074.0,0.7513388]
[1745920909511,0.3071466,95075.0,95074.0,0.5409788]
[1745920909717,0.3071466,95075.0,95074.0,0.7513388]
[1745920913426,0.3071466,95075.0,95074.0,0.7836388]
[1745920913925,0.3071466,95075.0,95074.0,0.12]
[1745920914219,0.2103352,95053.0,95052.0,0.6762926]
[1745920914425,0.2103352,95053.0,95052.0,0.3154926]
[1745920914617,0.2103352,95053.0,95052.0,0.7365926]
[1745920915015,0.2103314,95055.0,95054.0,0.2103308]
[1745920915220,0.2103314,95055.0,95054.0,0.4210208]
[1745920915414,0.2103314,95055.0,95054.0,0.6637308]
[1745920915620,0.2103314,95055.0,95054.0,0.6957308]
[1745920915820,0.2103314,95055.0,95054.0,0.7264308]
[1745920916019,0.2436267,95057.0,95056.0,0.2103286]
[1745920916220,0.2436267,95057.0,95056.0,0.4210186]
[1745920916429,0.2436267,95057.0,95056.0,0.6314186]
[1745920917123,0.2436267,95057.0,95056.0,0.7514186]
[1745920918227,0.2436267,95057.0,95056.0,0.6324186]
[1745920919226,0.4540267,95057.0,95056.0,0.001]
[1745920919429,0.4540267,95057.0,95056.0,0.2113286]
[1745920921228,0.2436267,95057.0,95056.0,0.2424286]
[1745920921427,0.2436267,95057.0,95056.0,0.4528286]
[1745920921621,0.2436267,95057.0,95056.0,0.6635186]
[1745920922325,0.0333,95057.0,95056.0,0.6635186]
[1745920922725,0.06572,95059.0,95058.0,0.2103242]
[1745920922926,0.2628941,95062.0,95061.0,0.2103153]
[1745920923128,0.2628941,95062.0,95061.0,0.4845053]
[1745920923317,0.2955941,95062.0,95061.0,0.2738153]
[1745920924029,0.0327,95062.0,95061.0,0.2738153]
[1745920924234,0.0327,95062.0,95061.0,0.3938153]
[1745920924531,0.2430153,95062.0,95061.0,0.3938153]
[1745920924728,0.0327,95062.0,95061.0,0.3938153]
[1745920924918,0.2430153,95062.0,95061.0,0.3938153]
[1745920928234,0.2430153,95062.0,95061.0,0.2738153]
[1745920929229,0.2430153,95062.0,95061.0,0.8148953]
[1745920929230,0.0327,95062.0,95061.0,0.8148953]
[1745920931239,0.06572,95063.0,95062.0,0.2103153]
[1745920931431,0.06572,95063.0,95062.0,0.6958953]
[1745920932139,0.06572,95063.0,95062.0,0.8158953]
[1745920938529,0.2628684,95072.0,95066.0,0.0525764]
[1745920938833,0.3067168,95071.0,95070.0,0.2102976]
[1745920939147,0.3067168,95071.0,95070.0,0.3302976]
[1745920939437,0.3367168,95071.0,95070.0,0.7513576]
[1745920945235,0.3367168,95071.0,95070.0,0.6313576]
[1745920946340,0.3367168,95071.0,95070.0,0.7513576]
[1745920946942,0.12642,95071.0,95070.0,0.7513576]
[1745920948948,0.3367154,95071.0,95070.0,0.7513576]
[1745920949447,0.2709954,95071.0,95070.0,0.7513576]
[1745920949649,0.4131,95099.0,95070.0,1.038744]
[1745920949941,0.0786697,95099.0,95098.0,0.2102357]
[1745920950142,0.1097697,95099.0,95098.0,0.2102357]
[1745920950342,0.3200797,95099.0,95098.0,0.2102357]
[1745920950535,0.1097697,95099.0,95098.0,0.2102357]
[1745920950736,0.21031,95098.0,95070.0,0.12]
[1745920950936,1.00628349,95099.0,95070.0,0.12]
[1745920950937,0.3608,95077.0,95072.0,0.21069]
[1745920951135,0.06527784,95080.0,95072.0,0.21069]
[1745920951136,0.0311,95076.0,95075.0,0.4209766]
[1745920951336,0.0308,95076.0,95075.0,0.2102866]
[1745920951643,0.0308,95076.0,95075.0,0.6313366]
[1745920951849,0.3608,95078.0,95077.0,0.2102821]
[1745920952038,0.3608,95078.0,95077.0,0.4209721]
[1745920952239,0.3608,95078.0,95077.0,0.6313221]
[1745920952435,0.3608,95078.0,95077.0,0.6615221]
[1745920953239,0.0308,95085.0,95084.0,0.2102667]
[1745920953445,0.0308,95085.0,95084.0,0.4209567]
[1745920953640,0.0308,95085.0,95084.0,0.6312967]
[1745920954045,0.0308,95085.0,95084.0,0.7241967]
[1745920954243,0.2410644,95085.0,95084.0,0.7241967]
[1745920954745,0.2410644,95085.0,95084.0,0.7251967]
[1745920955143,0.0308,95085.0,95084.0,0.7251967]
[1745920956340,0.0308,95085.0,95084.0,0.7271967]
[1745920956756,0.2410644,95085.0,95084.0,0.7271967]
[1745920959943,0.01531672,95100.0,95099.0,0.4209235]
[1745920960150,0.01531672,95100.0,95099.0,0.7817235]
[1745920960348,0.01531672,95100.0,95099.0,2.7171855]
[1745920961249,0.01531672,95100.0,95099.0,2.5971855]
[1745920961450,0.01531672,95100.0,95099.0,2.4920335]
[1745920961841,0.22554802,95100.0,95099.0,0.3608]
[1745920962045,0.22554802,95100.0,95091.0,0.0525625]
[1745920962046,0.2628103,95094.0,95091.0,0.0525625]
[1745920962241,0.0939,95093.0,95092.0,0.210249]
[1745920962646,0.30422,95093.0,95092.0,0.210249]
[1745920963156,0.1834,95093.0,95092.0,0.571049]
[1745920963357,0.1834,95093.0,95092.0,0.604149]
[1745920965161,0.1834,95093.0,95092.0,0.210249]
[1745920965162,0.3936468,95093.0,95092.0,0.210249]
[1745920965554,0.39372,95093.0,95065.0,0.3608]
[1745920965759,0.2102755,95080.0,95073.0,0.0525726]
[1745920966063,0.2102755,95080.0,95079.0,0.21185508]
[1745920966361,0.4206255,95080.0,95079.0,0.21185508]
[1745920966556,0.21035,95080.0,95079.0,0.21185508]
[1745920966755,0.4847255,95080.0,95079.0,0.21185508]
[1745920967262,0.6785255,95080.0,95079.0,0.21185508]
[1745920967754,0.6785255,95080.0,95079.0,0.21685508]
[1745920968662,0.6785255,95080.0,95079.0,0.21485508]
[1745920969250,0.6785255,95080.0,95079.0,0.21285508]
[1745920969451,0.6785255,95080.0,95079.0,0.21485508]
[1745920971261,0.6785255,95080.0,95079.0,0.21385508]
[1745920971450,0.6785255,95080.0,95079.0,0.21485508]
[1745920971852,0.6785255,95080.0,95079.0,0.21385508]
[1745920972053,0.6785255,95080.0,95079.0,0.21485508]
[1745920978964,0.6785255,95080.0,95079.0,0.21385508]
[1745920979169,0.6785255,95080.0,95079.0,0.21485508]
[1745920979381,0.4681755,95080.0,95079.0,0.21485508]
[1745920979777,0.4681755,95080.0,95079.0,0.2132777]
[1745920985179,0.12,95080.0,95079.0,0.6343177]
[1745920985978,0.12,95080.0,95079.0,0.6968177]
[1745920986173,0.0315,95081.0,95080.0,0.2102755]
[1745920986369,0.0315,95081.0,95080.0,0.6938155]
[1745920987779,0.0315,95081.0,95080.0,0.6958155]
[1745920988177,0.0315,95081.0,95080.0,0.48754]
[1745920988377,0.0315,95081.0,95080.0,0.6978155]
[1745920989295,0.0315,95081.0,95080.0,0.6988155]
[1745920992680,0.07452,95090.0,95089.0,0.2102556]
[1745920992881,0.07452,95090.0,95089.0,0.7817456]
[1745920993079,0.19452,95090.0,95089.0,0.9920756]
[1745920993282,0.25862,95090.0,95089.0,0.9920756]
[1745920993482,0.4688734,95090.0,95089.0,0.9920756]
[1745920994094,0.25862,95090.0,95089.0,0.9930756]
[1745920994282,0.4688734,95090.0,95089.0,0.9930756]
[1745920994692,0.25862,95090.0,95089.0,0.9930756]
[1745920995191,0.22632,95090.0,95089.0,0.9930756]
[1745920996390,0.22632,95090.0,95089.0,0.6322756]
[1745920998386,0.10632,95090.0,95089.0,0.6322756]
[1745920999484,0.10632,95090.0,95089.0,0.2112556]
[1745920999783,0.10632,95090.0,95089.0,0.6322756]
[1745921001186,0.22632,95090.0,95089.0,0.6322756]
[1745921002396,0.10632,95090.0,95089.0,0.6322756]
[1745921003287,0.3165734,95090.0,95089.0,0.2112556]
[1745921003480,0.3796734,95090.0,95089.0,0.2112556]
[1745921004097,0.4996734,95090.0,95089.0,0.2112556]
[1745921004694,0.2102788,95083.0,95066.0,0.0525763]
[1745921004994,0.3051711,95082.0,95081.0,0.2102733]
[1745921005194,0.4251711,95082.0,95081.0,0.2102733]
[1745921006584,0.4251711,95082.0,95081.0,0.2122733]
[1745921006792,0.7859711,95082.0,95081.0,0.2122733]
[1745921007495,0.7859711,95082.0,95081.0,0.2142733]
[1745921007697,0.7859711,95082.0,95081.0,0.2122733]
[1745921007897,0.7859711,95082.0,95081.0,0.2132733]
[1745921009093,0.680872,95082.0,95062.0,0.26446481]
[1745921009294,0.5711131,95063.0,95062.0,0.26446481]
[1745921009491,0.5711131,95063.0,95062.0,0.47515481]
[1745921010109,0.9015031,95063.0,95062.0,0.00157791]
[1745921010396,0.97435883,95063.0,95062.0,0.00457791]
[1745921010690,0.97435883,95063.0,95062.0,0.21789321]
[1745921010891,0.99721161,95063.0,95062.0,0.21489321]
[1745921011095,0.99721161,95063.0,95062.0,0.21689321]
[1745921012191,0.78682161,95063.0,95062.0,0.21689321]
[1745921012589,0.78782161,95063.0,95062.0,0.21389321]
[1745921012987,0.78882161,95063.0,95062.0,0.21189321]
[1745921013192,0.86334161,95063.0,95062.0,0.21189321]
[1745921013589,0.86234161,95063.0,95062.0,0.21189321]
[1745921013789,0.86134161,95063.0,95062.0,0.21189321]
[1745921014094,0.86234161,95063.0,95062.0,0.21189321]
[1745921015694,0.86134161,95063.0,95062.0,0.21189321]
[1745921015892,0.86922296,95063.0,95062.0,0.21189321]
[1745921016990,0.86922296,95063.0,95062.0,0.00157791]
[1745921020301,0.86922296,95063.0,95062.0,0.21189321]
[1745921020899,0.50842296,95063.0,95062.0,0.21189321]
[1745921021093,0.50842296,95063.0,95062.0,0.00157791]
[1745921021094,0.86922296,95063.0,95062.0,0.00157791]
[1745921021903,0.86922296,95063.0,95062.0,0.21189321]
[1745921023399,0.79470296,95063.0,95062.0,0.21189321]
[1745921023597,0.86718296,95063.0,95062.0,0.21189321]
[1745921025399,1.07757296,95063.0,95062.0,0.00157791]
[1745921031307,1.07857296,95063.0,95062.0,0.00157791]
[1745921031499,1.07957296,95063.0,95062.0,0.00157791]
[1745921032303,0.86918296,95063.0,95062.0,0.00157791]
[1745921032503,0.86925986,95063.0,95051.0,0.0831846]
[1745921032700,0.86925986,95063.0,95043.0,0.21193447]
[1745921032701,0.0525851,95051.0,95043.0,0.21193447]
[1745921032906,0.0525882,95046.0,95032.0,0.033]
[1745921033109,0.0525943,95035.0,95033.0,0.21069]
[1745921033406,0.2103884,95029.0,95028.0,0.0313]
[1745921033607,0.6436684,95029.0,95028.0,0.2416906]
[1745921033801,0.6436684,95029.0,95028.0,0.6628406]
[1745921034009,0.6436684,95029.0,95028.0,0.4523806]
[1745921034215,0.8269684,95029.0,95028.0,0.6628406]
[1745921034507,0.8269684,95029.0,95028.0,0.6688406]
[1745921035103,0.7069684,95029.0,95028.0,0.6688406]
[1745921035806,0.7069684,95029.0,95028.0,0.6638406]
[1745921036005,0.7069684,95029.0,95028.0,0.6648406]
[1745921036408,0.7069684,95029.0,95028.0,0.6628406]
[1745921036609,0.7069684,95029.0,95028.0,0.6638406]
[1745921037310,0.8269684,95029.0,95028.0,0.6638406]
[1745921039219,0.8269684,95029.0,95018.0,0.0526026]
[1745921039220,0.2104171,95016.0,94998.0,0.0526141]
[1745921039515,0.5712171,95016.0,95014.0,0.0311]
[1745921039711,0.5712171,95016.0,95009.0,0.0319]
[1745921039906,0.5712171,95016.0,95011.0,0.0311]
[1745921040108,0.7556171,95016.0,95011.0,0.0311]
[1745921040607,0.7556171,95016.0,95015.0,0.00405246]
[1745921041410,0.7556171,95016.0,95015.0,0.00705246]
[1745921042818,0.78769168,95016.0,95015.0,0.00705246]
[1745921046922,0.78769168,95016.0,95015.0,0.03725246]
[1745921050622,0.78769168,95016.0,95015.0,0.24767186]
[1745921050816,0.78769168,95016.0,95015.0,0.03725246]
[1745921054831,0.78769168,95016.0,95015.0,0.24767186]
[1745921055326,0.78769168,95016.0,95015.0,0.03725246]
[1745921059022,0.78769168,95016.0,95015.0,0.24767186]
[1745921059229,0.78769168,95016.0,95015.0,0.03725246]
[1745921063628,0.78769168,95016.0,95015.0,0.00705246]
[1745921070937,0.78769168,95016.0,95015.0,0.21747186]
[1745921071435,0.78769168,95016.0,95015.0,0.00705246]
[1745921073232,0.78769168,95016.0,95015.0,0.21774246]
[1745921073429,0.85813168,95016.0,95015.0,0.21774246]
[1745921074936,0.85813168,95016.0,95015.0,0.24814246]
[1745921077935,0.85813168,95016.0,95015.0,0.21774246]
[1745921082435,0.49733168,95016.0,95015.0,0.21774246]
[1745921082636,0.85813168,95016.0,95015.0,0.21774246]
[1745921086240,0.73813168,95016.0,95015.0,0.21774246]
[1745921087545,0.37733168,95016.0,95015.0,0.21774246]
[1745921087744,0.73813168,95016.0,95015.0,0.21774246]
[1745921090943,0.73813168,95016.0,95015.0,0.25084246]
[1745921091141,0.75549168,95016.0,95015.0,0.25084246]
[1745921091447,0.4808,95016.0,95015.0,1.02699586]
[1745921091649,0.4808,95016.0,95015.0,0.77699586]
[1745921092349,0.3608,95016.0,95015.0,0.89699586]
[1745921092541,0.3608,95016.0,95015.0,0.79175186]
[1745921092741,0.3934,95016.0,95015.0,0.79175186]
[1745921093842,0.6038171,95016.0,95015.0,0.79175186]
[1745921100148,0.6038171,95016.0,95015.0,0.67175186]
[1745921102048,0.6038171,95016.0,95015.0,0.63865186]